{"text_format":"3","workbook":"xlsx","n_sheets":2,"sheets":["เริ่มต้น","งบประมาณรายเดือนส่วนบุคคล"],"read":"whole","date_system":"1900"}

{"sheet":"เริ่มต้น","index":0,"n_rows":7,"n_cols":2,"rows_kept":7}
[null,"เกี่ยวกับเทมเพลตนี้"]
[null,"ใช้เวิร์กชีตงบประมาณรายเดือนส่วนบุคคลนี้เพื่อติดตาม รายรับที่คาดการณ์ และ รายรับจริงรายเดือน และ ต้นทุนที่คาดการณ์ และ ต้นทุนจริง"]
[null,"ใส่ค่าใช้จ่ายประเภทต่างๆ ที่เกิดขึ้นในตารางที่เกี่ยวข้อง"]
[null,"ยอดดุลที่คาดการณ์ ยอดดุลจริง และผลต่างจะถูกคำนวณโดยอัตโนมัติ"]
[null,"หมายเหตุ: "]
[null,"คำแนะนำเพิ่มเติมจะอยู่ในคอลัมน์ A ในเวิร์กชีต งบประมาณรายเดือนส่วนบุคคล ข้อความนี้ได้ถูกซ่อนไว้โดยตั้งใจ เมื่อต้องการเอาข้อความออก ให้เลือกคอลัมน์ A แล้วเลือก ลบ เมื่อต้องการยกเลิกการซ่อนข้อความ ให้เลือกคอลัมน์ A แล้วเปลี่ยนสีฟอนต์"]
[null,"เมื่อต้องการเรียนรู้เพิ่มเติมเกี่ยวกับตารางในเวิร์กชีต ให้กด SHIFT แล้วตามด้วย F10 ภายในตาราง เลือกตัวเลือก ตาราง จากนั้น เลือก ข้อความแสดงแทน"]

{"sheet":"งบประมาณรายเดือนส่วนบุคคล","index":1,"n_rows":64,"n_cols":10,"rows_kept":64,"merged":[[3,1,5,1],[3,2,3,3],[3,6,4,8],[3,9,4,9],[4,2,4,3],[5,2,5,3],[5,6,6,8],[5,9,6,9],[7,1,9,1],[7,2,7,3],[7,6,8,8],[7,9,8,9],[8,2,8,3],[9,2,9,3],[22,6,22,9],[23,1,23,4],[31,6,31,9],[33,1,33,4],[38,6,38,9],[40,1,40,4],[44,6,44,9],[46,1,46,4],[50,6,50,9],[54,1,54,4],[57,6,57,9],[58,6,59,8],[58,9,59,9],[60,6,61,8],[60,9,61,9],[62,6,63,8],[62,9,63,9],[64,1,64,4]]}
["สร้างงบประมาณรายเดือนส่วนบุคคลในเวิร์กชีตนี้ คำแนะนำที่เป็นประโยชน์เกี่ยวกับวิธีใช้เวิร์กชีตนี้อยู่ในเซลล์ในคอลัมน์นี้ ใช้ลูกศรลงเพื่อเริ่มต้นใช้งาน"]
["ชื่อเรื่องของเวิร์กชีตอยู่ในเซลล์ด้านขวา คำแนะนำถัดไปอยู่ในเซลล์ A4","งบประมาณรายเดือนส่วนบุคคล"]
[]
["ป้ายชื่อ รายได้ที่คาดการณ์รายเดือนจะอยู่ในเซลล์ทางด้านขวา ใส่ รายรับ 1 ในเซลล์ E4 และ รายรับพิเศษ ใน E5 เพื่อคำนวณ รายรับรายเดือนทั้งหมด ใน E6 คำแนะนำถัดไปอยู่ในเซลล์ A6","รายรับที่คาดการณ์รายเดือน","รายรับ 1",null,{"v":4300,"d":"฿4,300.00"},null,"ยอดดุลที่คาดการณ์ \n(รายรับที่คาดการณ์การลบค่าใช้จ่าย)",null,null,{"$f":"E6-J59","v":{"v":3405,"d":"฿3,405.00"}}]
[null,null,"รายรับพิเศษ",null,{"v":300,"d":"฿300.00"}]
["ยอดดุลที่คาดการณ์จะถูกคำนวณในเซลล์ J4 ยอดดุลจริงใน J6 และผลต่างใน J8 โดยอัตโนมัติ คำแนะนำถัดไปอยู่ในเซลล์ A8",null,"รายรับรายเดือนทั้งหมด",null,{"$f":"SUM(E4:E5)","v":{"v":4600,"d":"฿4,600.00"}},null,"ยอดดุลจริง \n(รายรับจริงการลบค่าใช้จ่าย)",null,null,{"$f":"E10-J61","v":{"v":3064,"d":"฿3,064.00"}}]
[]
["ป้ายชื่อ รายรับจริงรายเดือน อยู่ในเซลล์ทางด้านขวา ป้อน รายรับ 1 ในเซลล์ E8 และ รายรับพิเศษ ใน E9 เพื่อคำนวณ รายรับรายเดือนทั้งหมด ใน E10 คำแนะนำถัดไปอยู่ในเซลล์ A12","รายรับจริงรายเดือน","รายรับ 1",null,{"v":4000,"d":"฿4,000.00"},null,"ส่วนต่าง \n(ค่าจริงลบค่าที่คาดการณ์)",null,null,{"$f":"J6-J4","v":{"v":-341,"d":"-฿341.00"}}]
[null,null,"รายรับพิเศษ",null,{"v":300,"d":"฿300.00"}]
[null,null,"รายรับรายเดือนทั้งหมด",null,{"$f":"SUM(E8:E9)","v":{"v":4300,"d":"฿4,300.00"}}]
[]
["ใส่รายละเอียดในตาราง บ้าน เริ่มตั้งแต่เซลล์ด้านขวา และตาราง ความบันเทิงที่เริ่มตั้งแต่เซลล์ G12 คำแนะนำถัดไปอยู่ในเซลล์ A25","บ้าน","ต้นทุนที่คาดการณ์","ต้นทุนจริง","ผลต่าง",null,"ความบันเทิง","ต้นทุนที่คาดการณ์","ต้นทุนจริง","ผลต่าง"]
[null,"จำนองหรือเช่า",{"v":1000,"d":"฿1,000.00"},{"v":1000,"d":"฿1,000.00"},{"$f":"ที่พัก[[#This Row],[ต้นทุนที่คาดการณ์]]-ที่พัก[[#This Row],[ต้นทุนจริง]]","v":{"v":0,"d":"฿0.00"}},null,"วิดีโอ/ดีวีดี",null,null,{"$f":"ความบันเทิง[[#This Row],[ต้นทุนที่คาดการณ์]]-ความบันเทิง[[#This Row],[ต้นทุนจริง]]","v":{"v":0,"d":"฿0.00"}}]
[null,"โทรศัพท์",{"v":54,"d":"฿54.00"},{"v":100,"d":"฿100.00"},{"$f":"ที่พัก[[#This Row],[ต้นทุนที่คาดการณ์]]-ที่พัก[[#This Row],[ต้นทุนจริง]]","v":{"v":-46,"d":"-฿46.00"}},null,"ซีดี",null,null,{"$f":"ความบันเทิง[[#This Row],[ต้นทุนที่คาดการณ์]]-ความบันเทิง[[#This Row],[ต้นทุนจริง]]","v":{"v":0,"d":"฿0.00"}}]
[null,"ไฟฟ้า",{"v":44,"d":"฿44.00"},{"v":56,"d":"฿56.00"},{"$f":"ที่พัก[[#This Row],[ต้นทุนที่คาดการณ์]]-ที่พัก[[#This Row],[ต้นทุนจริง]]","v":{"v":-12,"d":"-฿12.00"}},null,"ภาพยนตร์",null,null,{"$f":"ความบันเทิง[[#This Row],[ต้นทุนที่คาดการณ์]]-ความบันเทิง[[#This Row],[ต้นทุนจริง]]","v":{"v":0,"d":"฿0.00"}}]
[null,"แก๊ส",{"v":22,"d":"฿22.00"},{"v":28,"d":"฿28.00"},{"$f":"ที่พัก[[#This Row],[ต้นทุนที่คาดการณ์]]-ที่พัก[[#This Row],[ต้นทุนจริง]]","v":{"v":-6,"d":"-฿6.00"}},null,"คอนเสิร์ต",null,null,{"$f":"ความบันเทิง[[#This Row],[ต้นทุนที่คาดการณ์]]-ความบันเทิง[[#This Row],[ต้นทุนจริง]]","v":{"v":0,"d":"฿0.00"}}]
[null,"น้ำและท่อระบายน้ำ",{"v":8,"d":"฿8.00"},{"v":8,"d":"฿8.00"},{"$f":"ที่พัก[[#This Row],[ต้นทุนที่คาดการณ์]]-ที่พัก[[#This Row],[ต้นทุนจริง]]","v":{"v":0,"d":"฿0.00"}},null,"การแข่งขันกีฬา",null,null,{"$f":"ความบันเทิง[[#This Row],[ต้นทุนที่คาดการณ์]]-ความบันเทิง[[#This Row],[ต้นทุนจริง]]","v":{"v":0,"d":"฿0.00"}}]
[null,"เคเบิล",{"v":34,"d":"฿34.00"},{"v":34,"d":"฿34.00"},{"$f":"ที่พัก[[#This Row],[ต้นทุนที่คาดการณ์]]-ที่พัก[[#This Row],[ต้นทุนจริง]]","v":{"v":0,"d":"฿0.00"}},null,"ละครถ่ายทอดสด",null,null,{"$f":"ความบันเทิง[[#This Row],[ต้นทุนที่คาดการณ์]]-ความบันเทิง[[#This Row],[ต้นทุนจริง]]","v":{"v":0,"d":"฿0.00"}}]
[null,"การกำจัดขยะ",{"v":10,"d":"฿10.00"},{"v":10,"d":"฿10.00"},{"$f":"ที่พัก[[#This Row],[ต้นทุนที่คาดการณ์]]-ที่พัก[[#This Row],[ต้นทุนจริง]]","v":{"v":0,"d":"฿0.00"}},null,"อื่นๆ",null,null,{"$f":"ความบันเทิง[[#This Row],[ต้นทุนที่คาดการณ์]]-ความบันเทิง[[#This Row],[ต้นทุนจริง]]","v":{"v":0,"d":"฿0.00"}}]
[null,"การบำรุงรักษาหรือการซ่อมแซม",{"v":23,"d":"฿23.00"},{"v":0,"d":"฿0.00"},{"$f":"ที่พัก[[#This Row],[ต้นทุนที่คาดการณ์]]-ที่พัก[[#This Row],[ต้นทุนจริง]]","v":{"v":23,"d":"฿23.00"}},null,"อื่นๆ",null,null,{"$f":"ความบันเทิง[[#This Row],[ต้นทุนที่คาดการณ์]]-ความบันเทิง[[#This Row],[ต้นทุนจริง]]","v":{"v":0,"d":"฿0.00"}}]
[null,"สินค้า",{"v":0,"d":"฿0.00"},{"v":0,"d":"฿0.00"},{"$f":"ที่พัก[[#This Row],[ต้นทุนที่คาดการณ์]]-ที่พัก[[#This Row],[ต้นทุนจริง]]","v":{"v":0,"d":"฿0.00"}},null,"อื่นๆ",null,null,{"$f":"ความบันเทิง[[#This Row],[ต้นทุนที่คาดการณ์]]-ความบันเทิง[[#This Row],[ต้นทุนจริง]]","v":{"v":0,"d":"฿0.00"}}]
[null,"อื่นๆ",{"v":0,"d":"฿0.00"},{"v":0,"d":"฿0.00"},{"$f":"ที่พัก[[#This Row],[ต้นทุนที่คาดการณ์]]-ที่พัก[[#This Row],[ต้นทุนจริง]]","v":{"v":0,"d":"฿0.00"}},null,"ผลรวมย่อย",null,null,{"$f":"SUBTOTAL(109,ความบันเทิง[ผลต่าง])","v":{"v":0,"d":"฿0.00"}}]
[null,"ผลรวมย่อย",null,null,{"$f":"SUBTOTAL(109,ที่พัก[ผลต่าง])","v":{"v":-41,"d":"-฿41.00"}}]
[{"$nulls":6},"เงินกู้","ต้นทุนที่คาดการณ์","ต้นทุนจริง","ผลต่าง"]
["ใส่รายละเอียดลงในตาราง การเดินทาง เริ่มตั้งแต่เซลล์ด้านขวา และในตาราง เงินกู้ ที่เริ่มตั้งแต่เซลล์ G24 คำแนะนำถัดไปอยู่ในเซลล์ A35","การเดินทาง","ต้นทุนที่คาดการณ์","ต้นทุนจริง","ผลต่าง",null,"ส่วนบุคคล",null,null,{"$f":"เงินกู้[[#This Row],[ต้นทุนที่คาดการณ์]]-เงินกู้[[#This Row],[ต้นทุนจริง]]","v":{"v":0,"d":"฿0.00"}}]
[null,"ค่าใช้จ่ายยานพาหนะ",null,null,{"$f":"การเดินทาง[[#This Row],[ต้นทุนที่คาดการณ์]]-การเดินทาง[[#This Row],[ต้นทุนจริง]]","v":{"v":0,"d":"฿0.00"}},null,"นักเรียน",null,null,{"$f":"เงินกู้[[#This Row],[ต้นทุนที่คาดการณ์]]-เงินกู้[[#This Row],[ต้นทุนจริง]]","v":{"v":0,"d":"฿0.00"}}]
[null,"ค่าโดยสารรถเมล์/แท็กซี่",null,null,{"$f":"การเดินทาง[[#This Row],[ต้นทุนที่คาดการณ์]]-การเดินทาง[[#This Row],[ต้นทุนจริง]]","v":{"v":0,"d":"฿0.00"}},null,"บัตรเครดิต",null,null,{"$f":"เงินกู้[[#This Row],[ต้นทุนที่คาดการณ์]]-เงินกู้[[#This Row],[ต้นทุนจริง]]","v":{"v":0,"d":"฿0.00"}}]
[null,"ค่าประกัน",null,null,{"$f":"การเดินทาง[[#This Row],[ต้นทุนที่คาดการณ์]]-การเดินทาง[[#This Row],[ต้นทุนจริง]]","v":{"v":0,"d":"฿0.00"}},null,"บัตรเครดิต",null,null,{"$f":"เงินกู้[[#This Row],[ต้นทุนที่คาดการณ์]]-เงินกู้[[#This Row],[ต้นทุนจริง]]","v":{"v":0,"d":"฿0.00"}}]
[null,"ใบอนุญาต",null,null,{"$f":"การเดินทาง[[#This Row],[ต้นทุนที่คาดการณ์]]-การเดินทาง[[#This Row],[ต้นทุนจริง]]","v":{"v":0,"d":"฿0.00"}},null,"บัตรเครดิต",null,null,{"$f":"เงินกู้[[#This Row],[ต้นทุนที่คาดการณ์]]-เงินกู้[[#This Row],[ต้นทุนจริง]]","v":{"v":0,"d":"฿0.00"}}]
[null,"น้ำมัน",null,null,{"$f":"การเดินทาง[[#This Row],[ต้นทุนที่คาดการณ์]]-การเดินทาง[[#This Row],[ต้นทุนจริง]]","v":{"v":0,"d":"฿0.00"}},null,"อื่นๆ",null,null,{"$f":"เงินกู้[[#This Row],[ต้นทุนที่คาดการณ์]]-เงินกู้[[#This Row],[ต้นทุนจริง]]","v":{"v":0,"d":"฿0.00"}}]
[null,"การบำรุงรักษา",null,null,{"$f":"การเดินทาง[[#This Row],[ต้นทุนที่คาดการณ์]]-การเดินทาง[[#This Row],[ต้นทุนจริง]]","v":{"v":0,"d":"฿0.00"}},null,"ผลรวมย่อย",null,null,{"$f":"SUBTOTAL(109,เงินกู้[ผลต่าง])","v":{"v":0,"d":"฿0.00"}}]
[null,"อื่นๆ",null,null,{"$f":"การเดินทาง[[#This Row],[ต้นทุนที่คาดการณ์]]-การเดินทาง[[#This Row],[ต้นทุนจริง]]","v":{"v":0,"d":"฿0.00"}}]
[null,"ผลรวมย่อย",null,null,{"$f":"SUBTOTAL(109,การเดินทาง[ผลต่าง])","v":{"v":0,"d":"฿0.00"}},null,"ภาษี","ต้นทุนที่คาดการณ์","ต้นทุนจริง","ผลต่าง"]
[{"$nulls":6},"สหพันธรัฐ",null,null,{"$f":"ภาษี[[#This Row],[ต้นทุนที่คาดการณ์]]-ภาษี[[#This Row],[ต้นทุนจริง]]","v":{"v":0,"d":"฿0.00"}}]
["ใส่รายละเอียดลงในตาราง ค่าประกัน เริ่มตั้งแต่เซลล์ด้านขวา และในตาราง ภาษี ที่เริ่มตั้งแต่เซลล์ G33 คำแนะนำถัดไปอยู่ในเซลล์ A42","ค่าประกัน","ต้นทุนที่คาดการณ์","ต้นทุนจริง","ผลต่าง",null,"รัฐ",null,null,{"$f":"ภาษี[[#This Row],[ต้นทุนที่คาดการณ์]]-ภาษี[[#This Row],[ต้นทุนจริง]]","v":{"v":0,"d":"฿0.00"}}]
[null,"หน้าแรก",null,null,{"$f":"ค่าประกัน[[#This Row],[ต้นทุนที่คาดการณ์]]-ค่าประกัน[[#This Row],[ต้นทุนจริง]]","v":{"v":0,"d":"฿0.00"}},null,"ท้องถิ่น",null,null,{"$f":"ภาษี[[#This Row],[ต้นทุนที่คาดการณ์]]-ภาษี[[#This Row],[ต้นทุนจริง]]","v":{"v":0,"d":"฿0.00"}}]
[null,"สุขภาพ",null,null,{"$f":"ค่าประกัน[[#This Row],[ต้นทุนที่คาดการณ์]]-ค่าประกัน[[#This Row],[ต้นทุนจริง]]","v":{"v":0,"d":"฿0.00"}},null,"อื่นๆ",null,null,{"$f":"ภาษี[[#This Row],[ต้นทุนที่คาดการณ์]]-ภาษี[[#This Row],[ต้นทุนจริง]]","v":{"v":0,"d":"฿0.00"}}]
[null,"ชีวิต",null,null,{"$f":"ค่าประกัน[[#This Row],[ต้นทุนที่คาดการณ์]]-ค่าประกัน[[#This Row],[ต้นทุนจริง]]","v":{"v":0,"d":"฿0.00"}},null,"ผลรวมย่อย",null,null,{"$f":"SUBTOTAL(109,ภาษี[ผลต่าง])","v":{"v":0,"d":"฿0.00"}}]
[null,"อื่นๆ",null,null,{"$f":"ค่าประกัน[[#This Row],[ต้นทุนที่คาดการณ์]]-ค่าประกัน[[#This Row],[ต้นทุนจริง]]","v":{"v":0,"d":"฿0.00"}}]
[null,"ผลรวมย่อย",null,null,{"$f":"SUBTOTAL(109,ค่าประกัน[ผลต่าง])","v":{"v":0,"d":"฿0.00"}},null,"เงินออมหรือการลงทุน","ต้นทุนที่คาดการณ์","ต้นทุนจริง","ผลต่าง"]
[{"$nulls":6},"บัญชีเกษียณอายุ",null,null,{"$f":"เงินออม[[#This Row],[ต้นทุนที่คาดการณ์]]-เงินออม[[#This Row],[ต้นทุนจริง]]","v":{"v":0,"d":"฿0.00"}}]
["ใส่รายละเอียดลงในตาราง อาหาร เริ่มตั้งแต่เซลล์ด้านขวา และในตาราง เงินออม ที่เริ่มตั้งแต่เซลล์ G40 คำแนะนำถัดไปอยู่ในเซลล์ A48","อาหาร","ต้นทุนที่คาดการณ์","ต้นทุนจริง","ผลต่าง",null,"บัญชีในการลงทุน",null,null,{"$f":"เงินออม[[#This Row],[ต้นทุนที่คาดการณ์]]-เงินออม[[#This Row],[ต้นทุนจริง]]","v":{"v":0,"d":"฿0.00"}}]
[null,"ของชำ",null,null,{"$f":"อาหาร[[#This Row],[ต้นทุนที่คาดการณ์]]-อาหาร[[#This Row],[ต้นทุนจริง]]","v":{"v":0,"d":"฿0.00"}},null,"อื่นๆ",null,null,{"$f":"เงินออม[[#This Row],[ต้นทุนที่คาดการณ์]]-เงินออม[[#This Row],[ต้นทุนจริง]]","v":{"v":0,"d":"฿0.00"}}]
[null,"ทานข้าวนอกบ้าน",null,null,{"$f":"อาหาร[[#This Row],[ต้นทุนที่คาดการณ์]]-อาหาร[[#This Row],[ต้นทุนจริง]]","v":{"v":0,"d":"฿0.00"}},null,"ผลรวมย่อย",null,null,{"$f":"SUBTOTAL(109,เงินออม[ผลต่าง])","v":{"v":0,"d":"฿0.00"}}]
[null,"อื่นๆ",null,null,{"$f":"อาหาร[[#This Row],[ต้นทุนที่คาดการณ์]]-อาหาร[[#This Row],[ต้นทุนจริง]]","v":{"v":0,"d":"฿0.00"}}]
[null,"ผลรวมย่อย",null,null,{"$f":"SUBTOTAL(109,อาหาร[ผลต่าง])","v":{"v":0,"d":"฿0.00"}},null,"ของขวัญและการบริจาค","ต้นทุนที่คาดการณ์","ต้นทุนจริง","ผลต่าง"]
[{"$nulls":6},"การกุศล 1",null,null,{"$f":"ของขวัญ[[#This Row],[ต้นทุนที่คาดการณ์]]-ของขวัญ[[#This Row],[ต้นทุนจริง]]","v":{"v":0,"d":"฿0.00"}}]
["ใส่รายละเอียดลงในตาราง สัตว์เลี้ยง เริ่มตั้งแต่เซลล์ด้านขวา และในตาราง ของขวัญ ที่เริ่มตั้งแต่เซลล์ G46 คำแนะนำถัดไปอยู่ในเซลล์ A56","สัตว์เลี้ยง","ต้นทุนที่คาดการณ์","ต้นทุนจริง","ผลต่าง",null,"การกุศล 2",null,null,{"$f":"ของขวัญ[[#This Row],[ต้นทุนที่คาดการณ์]]-ของขวัญ[[#This Row],[ต้นทุนจริง]]","v":{"v":0,"d":"฿0.00"}}]
[null,"อาหาร",null,null,{"$f":"สัตว์เลี้ยง[[#This Row],[ต้นทุนที่คาดการณ์]]-สัตว์เลี้ยง[[#This Row],[ต้นทุนจริง]]","v":{"v":0,"d":"฿0.00"}},null,"การกุศล 3",null,null,{"$f":"ของขวัญ[[#This Row],[ต้นทุนที่คาดการณ์]]-ของขวัญ[[#This Row],[ต้นทุนจริง]]","v":{"v":0,"d":"฿0.00"}}]
[null,"การแพทย์",null,null,{"$f":"สัตว์เลี้ยง[[#This Row],[ต้นทุนที่คาดการณ์]]-สัตว์เลี้ยง[[#This Row],[ต้นทุนจริง]]","v":{"v":0,"d":"฿0.00"}},null,"ผลรวมย่อย",null,null,{"$f":"SUBTOTAL(109,ของขวัญ[ผลต่าง])","v":{"v":0,"d":"฿0.00"}}]
[null,"เสริมสวย",null,null,{"$f":"สัตว์เลี้ยง[[#This Row],[ต้นทุนที่คาดการณ์]]-สัตว์เลี้ยง[[#This Row],[ต้นทุนจริง]]","v":{"v":0,"d":"฿0.00"}}]
[null,"ของเล่น",null,null,{"$f":"สัตว์เลี้ยง[[#This Row],[ต้นทุนที่คาดการณ์]]-สัตว์เลี้ยง[[#This Row],[ต้นทุนจริง]]","v":{"v":0,"d":"฿0.00"}},null,"กฎหมาย","ต้นทุนที่คาดการณ์","ต้นทุนจริง","ผลต่าง"]
[null,"อื่นๆ",null,null,{"$f":"สัตว์เลี้ยง[[#This Row],[ต้นทุนที่คาดการณ์]]-สัตว์เลี้ยง[[#This Row],[ต้นทุนจริง]]","v":{"v":0,"d":"฿0.00"}},null,"ทนาย",null,null,{"$f":"กฎหมาย[[#This Row],[ต้นทุนที่คาดการณ์]]-กฎหมาย[[#This Row],[ต้นทุนจริง]]","v":{"v":0,"d":"฿0.00"}}]
[null,"ผลรวมย่อย",null,null,{"$f":"SUBTOTAL(109,สัตว์เลี้ยง[ผลต่าง])","v":{"v":0,"d":"฿0.00"}},null,"ค่าอุปการะเลี้ยงดู",null,null,{"$f":"กฎหมาย[[#This Row],[ต้นทุนที่คาดการณ์]]-กฎหมาย[[#This Row],[ต้นทุนจริง]]","v":{"v":0,"d":"฿0.00"}}]
[{"$nulls":6},"การชำระเงินตามข้อผูกมัด/คำพิพากษา",null,null,{"$f":"กฎหมาย[[#This Row],[ต้นทุนที่คาดการณ์]]-กฎหมาย[[#This Row],[ต้นทุนจริง]]","v":{"v":0,"d":"฿0.00"}}]
["ใส่รายละเอียดลงในตาราง การดูแลตัวเอง เริ่มตั้งแต่เซลล์ด้านขวา และในตาราง กฏหมาย ที่เริ่มตั้งแต่เซลล์ G52 คำแนะนำถัดไปอยู่ในเซลล์ A59","การดูแลตัวเอง","ต้นทุนที่คาดการณ์","ต้นทุนจริง","ผลต่าง",null,"อื่นๆ",null,null,{"$f":"กฎหมาย[[#This Row],[ต้นทุนที่คาดการณ์]]-กฎหมาย[[#This Row],[ต้นทุนจริง]]","v":{"v":0,"d":"฿0.00"}}]
[null,"การแพทย์",null,null,{"$f":"ค่าดูแลส่วนบุคคล[[#This Row],[ต้นทุนที่คาดการณ์]]-ค่าดูแลส่วนบุคคล[[#This Row],[ต้นทุนจริง]]","v":{"v":0,"d":"฿0.00"}},null,"ผลรวมย่อย",null,null,{"$f":"SUBTOTAL(109,กฎหมาย[ผลต่าง])","v":{"v":0,"d":"฿0.00"}}]
[null,"ผม/เล็บ",null,null,{"$f":"ค่าดูแลส่วนบุคคล[[#This Row],[ต้นทุนที่คาดการณ์]]-ค่าดูแลส่วนบุคคล[[#This Row],[ต้นทุนจริง]]","v":{"v":0,"d":"฿0.00"}}]
["ผลรวมต้นทุนที่คาดการณ์ จะถูกคำนวณโดยอัตโนมัติในเซลล์ J59 ผลรวมต้นทุนจริง ใน J61 และผลรวมผลต่างใน J63 ","เสื้อผ้า",null,null,{"$f":"ค่าดูแลส่วนบุคคล[[#This Row],[ต้นทุนที่คาดการณ์]]-ค่าดูแลส่วนบุคคล[[#This Row],[ต้นทุนจริง]]","v":{"v":0,"d":"฿0.00"}},null,"ผลรวมต้นทุนที่คาดการณ์",null,null,{"$f":"SUBTOTAL(109,ที่พัก[ต้นทุนที่คาดการณ์],การเดินทาง[ต้นทุนที่คาดการณ์],ค่าประกัน[ต้นทุนที่คาดการณ์],อาหาร[ต้นทุนที่คาดการณ์],สัตว์เลี้ยง[ต้นทุนที่คาดการณ์],ค่าดูแลส่วนบุคคล[ต้นทุนที่คาดการณ์],ความบันเทิง[ต้นทุนที่คาดการณ์],เงินกู้[ต้นทุนที่คาดการณ์],ภาษี[ต้นทุนที่คาดการณ์],เงินออม[ต้นทุนที่คาดการณ์],ของขวัญ[ต้นทุนที่คาดการณ์],กฎหมาย[ต้นทุนที่คาดการณ์])","v":{"v":1195,"d":"฿1,195.00"}}]
[null,"ซักแห้ง",null,null,{"$f":"ค่าดูแลส่วนบุคคล[[#This Row],[ต้นทุนที่คาดการณ์]]-ค่าดูแลส่วนบุคคล[[#This Row],[ต้นทุนจริง]]","v":{"v":0,"d":"฿0.00"}}]
[null,"สโมสรสุขภาพ",null,null,{"$f":"ค่าดูแลส่วนบุคคล[[#This Row],[ต้นทุนที่คาดการณ์]]-ค่าดูแลส่วนบุคคล[[#This Row],[ต้นทุนจริง]]","v":{"v":0,"d":"฿0.00"}},null,"ผลรวมต้นทุนจริง",null,null,{"$f":"SUBTOTAL(109,ที่พัก[ต้นทุนจริง],การเดินทาง[ต้นทุนจริง],ค่าประกัน[ต้นทุนจริง],อาหาร[ต้นทุนจริง],สัตว์เลี้ยง[ต้นทุนจริง],ค่าดูแลส่วนบุคคล[ต้นทุนจริง],ความบันเทิง[ต้นทุนจริง],เงินกู้[ต้นทุนจริง],ภาษี[ต้นทุนจริง],เงินออม[ต้นทุนจริง],ของขวัญ[ต้นทุนจริง],กฎหมาย[ต้นทุนจริง])","v":{"v":1236,"d":"฿1,236.00"}}]
[null,"ค่าบำรุงหรือค่าธรรมเนียมองค์กร",null,null,{"$f":"ค่าดูแลส่วนบุคคล[[#This Row],[ต้นทุนที่คาดการณ์]]-ค่าดูแลส่วนบุคคล[[#This Row],[ต้นทุนจริง]]","v":{"v":0,"d":"฿0.00"}}]
[null,"อื่นๆ",null,null,{"$f":"ค่าดูแลส่วนบุคคล[[#This Row],[ต้นทุนที่คาดการณ์]]-ค่าดูแลส่วนบุคคล[[#This Row],[ต้นทุนจริง]]","v":{"v":0,"d":"฿0.00"}},null,"ผลรวมผลต่าง",null,null,{"$f":"J59-J61","v":{"v":-41,"d":"-฿41.00"}}]
[null,"ผลรวมย่อย",null,null,{"$f":"SUBTOTAL(109,ค่าดูแลส่วนบุคคล[ผลต่าง])","v":{"v":0,"d":"฿0.00"}}]